bitfinex/quotes_BTCUSD_20251217
["timestamp","ask_amount","ask_price","bid_price","bid_amount"]
[1765967721752,0.00099012,86904.0,86903.0,0.14229003]
[1765967721957,0.00099012,86904.0,86903.0,0.16689605]
[1765967722169,0.00099012,86904.0,86903.0,0.05535003]
[1765967722372,0.00199012,86904.0,86903.0,0.09962587]
[1765967722578,0.00199012,86904.0,86903.0,0.12264003]
[1765967722809,0.00099012,86904.0,86903.0,0.05535003]
[1765967723010,0.00099012,86904.0,86903.0,0.09962587]
[1765967723305,0.00099012,86904.0,86903.0,0.12364003]
[1765967723532,0.00099012,86904.0,86903.0,0.14823099]
[1765967724213,0.00099012,86904.0,86903.0,0.37837264]
[1765967724405,0.00099012,86904.0,86903.0,0.12521683]
[1765967724703,0.00099012,86904.0,86903.0,0.14823099]
[1765967725873,0.00099012,86904.0,86903.0,0.37837264]
[1765967726072,0.00099012,86904.0,86903.0,0.35535848]
[1765967727031,0.00099012,86904.0,86903.0,0.39650844]
[1765967727233,0.00099012,86904.0,86903.0,0.35535848]
[1765967727882,0.00099012,86904.0,86903.0,0.10697683]
[1765967728090,0.00099012,86904.0,86903.0,0.16068247]
[1765967728292,0.00099012,86904.0,86903.0,0.14923099]
[1765967728501,0.00099012,86904.0,86903.0,0.15023099]
[1765967728677,1.2e-07,86904.0,86903.0,0.12721683]
[1765967728884,1.2e-07,86904.0,86903.0,0.15323099]
[1765967729055,1.2e-07,86904.0,86903.0,0.15184218]
[1765967729378,1.2e-07,86904.0,86903.0,0.15384218]
[1765967730083,1.2e-07,86904.0,86903.0,0.15184218]
[1765967730425,1.2e-07,86904.0,86903.0,0.15384218]
[1765967730767,1.2e-07,86904.0,86903.0,0.15184218]
[1765967730978,1.2e-07,86904.0,86903.0,0.15484218]
[1765967731175,1.2e-07,86904.0,86903.0,0.15784218]
[1765967731471,1.2e-07,86904.0,86903.0,0.19599214]
[1765967731670,1.2e-07,86904.0,86903.0,0.19799214]
[1765967731845,1.2e-07,86904.0,86903.0,0.19499214]
[1765967732058,1.2e-07,86904.0,86903.0,0.17975214]
[1765967732375,1.2e-07,86904.0,86903.0,0.34739214]
[1765967732523,1.2e-07,86904.0,86903.0,0.28322802]
[1765967732726,1.2e-07,86908.0,86907.0,0.026]
[1765967732935,0.00614,86947.0,86931.0,0.31700752]
[1765967733179,0.0002129,86932.0,86931.0,0.10518]
[1765967733398,0.0002129,86932.0,86931.0,0.12979962]
[1765967733710,0.00109743,86932.0,86931.0,0.12979962]
[1765967734369,0.00109743,86932.0,86931.0,0.12351566]
[1765967734713,0.00109743,86932.0,86931.0,0.23648225]
[1765967735046,0.31811,86971.0,86947.0,0.01889]
[1765967735333,0.50409211,86970.0,86948.0,0.04124225]
[1765967735689,0.50409211,86970.0,86948.0,0.04285512]
[1765967735894,0.50409211,86970.0,86949.0,0.0113517]
[1765967736109,0.50409211,86970.0,86950.0,0.02300172]
[1765967736308,0.50409211,86970.0,86950.0,0.02461459]
[1765967737078,0.00037636,86971.0,86950.0,0.02461459]
[1765967737281,0.50409211,86970.0,86950.0,0.02446603]
[1765967737488,0.00037636,86971.0,86951.0,0.01135677]
[1765967737851,0.003,86970.0,86951.0,0.01296964]
[1765967738156,0.00037636,86971.0,86951.0,0.00161287]
[1765967738359,0.00037636,86971.0,86951.0,0.02404987]
[1765967738589,0.003,86970.0,86951.0,0.02404987]
[1765967738796,0.003,86970.0,86952.0,0.01133014]
[1765967739000,0.00037636,86971.0,86952.0,0.01133014]
[1765967739001,0.00037636,86971.0,86953.0,0.02300093]
[1765967739204,0.00037636,86971.0,86953.0,0.0652338]
[1765967739378,0.00337636,86971.0,86954.0,0.04062]
[1765967739600,0.00337636,86971.0,86957.0,0.0204]
[1765967739830,0.00337636,86971.0,86958.0,0.0303959]
[1765967740241,0.00337636,86971.0,86958.0,0.03200877]
[1765967740612,0.00037636,86971.0,86958.0,0.03200877]
[1765967741149,0.00085253,86959.0,86958.0,0.00900917]
[1765967741440,0.00085253,86959.0,86958.0,0.01985287]
[1765967741657,0.00085253,86959.0,86958.0,0.04860287]
[1765967741851,0.00085253,86959.0,86958.0,0.01985287]
[1765967743367,0.00085253,86959.0,86958.0,0.00161287]
[1765967743571,0.00085253,86959.0,86958.0,0.01985287]
[1765967743773,0.00085253,86959.0,86958.0,0.00161287]
[1765967744136,0.00085253,86959.0,86958.0,0.01824]
[1765967744391,0.00085253,86959.0,86940.0,0.02300437]
[1765967744548,0.01149901,86964.0,86945.0,0.02868244]
[1765967744751,0.00041054,86945.0,86927.0,0.04062]
[1765967744952,0.01150112,86948.0,86928.0,0.01824]
[1765967745185,0.24152219,86949.0,86928.0,0.0427266]
[1765967745453,0.01150112,86948.0,86929.0,0.02905473]
[1765967745596,0.24151792,86951.0,86929.0,0.01081473]
[1765967745597,0.50409211,86940.0,86929.0,0.01081473]
[1765967745779,0.50409211,86940.0,86917.0,0.0204]
[1765967745780,0.01150231,86939.0,86930.0,0.01824]
[1765967745984,0.01150231,86939.0,86918.0,0.01]
[1765967745985,0.24156514,86934.0,86918.0,0.01]
[1765967746189,0.01150403,86926.0,86918.0,0.01]
[1765967746391,0.01150443,86923.0,86919.0,0.01824]
[1765967746644,0.01150443,86923.0,86914.0,0.01824]
[1765967746814,0.01150483,86920.0,86914.0,0.0001129]
[1765967747151,0.01150496,86919.0,86914.0,2.9e-06]
[1765967747351,0.24160731,86918.0,86914.0,2.9e-06]
[1765967747495,0.24161176,86917.0,86914.0,2.9e-06]
[1765967747853,0.01150403,86926.0,86914.0,2.9e-06]
[1765967748079,0.51559588,86928.0,86914.0,2.9e-06]
[1765967748233,0.002,86919.0,86914.0,2.9e-06]
[1765967748614,0.002,86919.0,86914.0,0.00161577]
[1765967748813,0.50409211,86930.0,86915.0,0.00834878]
[1765967749001,0.003,86926.0,86915.0,0.00996165]
[1765967749645,0.23008795,86924.0,86914.0,2.9e-06]
[1765967749855,0.01150443,86923.0,86915.0,0.01824]
[1765967750156,0.01150443,86923.0,86914.0,2.9e-06]
[1765967750157,0.01150469,86921.0,86914.0,2.9e-06]
[1765967750452,0.24159893,86921.0,86914.0,2.9e-06]
[1765967750630,0.01150456,86922.0,86914.0,2.9e-06]
[1765967751263,0.00025266,86940.0,86914.0,0.00161577]
[1765967751460,0.002,86921.0,86914.0,0.06524702]
[1765967751640,0.002,86921.0,86915.0,0.03405814]
[1765967751805,0.50434477,86940.0,86917.0,0.0204]
[1765967752010,0.50434477,86940.0,86918.0,0.02301019]
[1765967752215,0.002,86922.0,86918.0,0.02462306]
[1765967752422,0.002,86922.0,86919.0,0.01133853]
[1765967752622,0.002,86922.0,86920.0,0.02300966]
[1765967752845,0.002,86922.0,86920.0,0.02462253]
[1765967753679,0.50434477,86940.0,86920.0,0.02462253]
[1765967753876,0.50634477,86940.0,86920.0,0.02462253]
[1765967754077,0.74789257,86940.0,86921.0,0.00658633]
[1765967754280,0.50409211,86931.0,86922.0,0.01824]
[1765967754514,0.0115035,86930.0,86922.0,0.01824]
[1765967754714,0.0115035,86930.0,86921.0,0.01824]
[1765967754920,0.51559548,86931.0,86921.0,0.01824]
[1765967755078,0.01150377,86928.0,86921.0,0.01824]
[1765967755385,0.0115039,86927.0,86921.0,0.01824]
[1765967755803,0.01150417,86925.0,86914.0,2.9e-06]
[1765967756026,0.01150443,86923.0,86914.0,2.9e-06]
[1765967756202,0.001,86931.0,86914.0,2.9e-06]
[1765967756394,0.50409211,86930.0,86914.0,0.02462702]
[1765967757035,0.50409211,86930.0,86914.0,0.03095372]
[1765967757604,0.001,86928.0,86914.0,0.03095372]
[1765967757804,0.001,86928.0,86914.0,0.00794247]
[1765967758184,0.50409211,86930.0,86914.0,0.00794247]
[1765967758388,0.50609211,86930.0,86914.0,0.00794247]
[1765967759040,0.50609211,86930.0,86914.0,0.03095372]
[1765967759448,0.002,86930.0,86914.0,0.00794247]
[1765967759652,0.002,86930.0,86915.0,0.01102153]
[1765967759857,0.002,86930.0,86915.0,0.0126344]
[1765967760040,0.01150231,86939.0,86915.0,0.0126344]
[1765967760376,0.002,86930.0,86915.0,0.0126344]
[1765967760537,0.002,86930.0,86916.0,0.0057604]
[1765967760966,0.50409211,86930.0,86915.0,0.00161287]
[1765967761167,0.73416247,86930.0,86916.0,0.01824]
[1765967761341,0.73416247,86930.0,86915.0,0.00161287]
[1765967761342,0.50409211,86930.0,86917.0,0.01824]
[1765967762071,0.50409211,86930.0,86914.0,2.9e-06]
[1765967762072,0.01150417,86925.0,86914.0,2.9e-06]
[1765967762269,0.2415959,86922.0,86914.0,2.9e-06]
[1765967762804,0.01150456,86922.0,86914.0,2.9e-06]
[1765967763149,0.01150469,86921.0,86914.0,2.9e-06]
[1765967763351,0.01150483,86920.0,86914.0,2.9e-06]
[1765967763775,0.23010987,86915.0,86914.0,2.9e-06]
[1765967764134,0.24162135,86913.0,86900.0,0.01824]
[1765967764259,0.50409211,86910.0,86900.0,0.01824]
[1765967764462,0.00089,86909.0,86900.0,0.01824]
[1765967764894,0.24164286,86906.0,86886.0,0.02456974]
[1765967765125,0.00089,86895.0,86883.0,0.00161287]
[1765967765311,0.00089,86895.0,86871.0,0.03059141]
[1765967765512,0.00089,86883.0,86872.0,0.04280785]
[1765967765823,0.00089,86883.0,86873.0,0.06084051]
[1765967766026,0.00089,86883.0,86874.0,0.02456785]
[1765967766317,0.00089,86887.0,86873.0,0.00161287]
[1765967766318,0.00089,86874.0,86873.0,0.00161287]
[1765967766521,0.00089,86874.0,86873.0,0.04441843]
[1765967766921,0.00089,86874.0,86873.0,0.01985287]
[1765967767940,0.00089,86874.0,86873.0,0.02085287]
[1765967768913,0.0006,86882.0,86873.0,0.02185287]
[1765967769121,0.00031,86889.0,86873.0,0.02185287]
[1765967769256,0.00031,86889.0,86874.0,0.00680522]
[1765967769756,0.00031,86889.0,86874.0,0.00841809]
[1765967770192,0.00131,86889.0,86874.0,0.00161287]
[1765967770373,0.00231,86889.0,86874.0,0.00161287]
[1765967770750,0.00331,86889.0,86874.0,0.00161287]
[1765967770949,0.003,86889.0,86874.0,0.00161287]
[1765967771175,0.003,86889.0,86874.0,0.00806536]
[1765967771981,0.003,86889.0,86874.0,0.0310872]
[1765967772842,0.001,86889.0,86874.0,0.0310872]
[1765967773194,0.002,86889.0,86875.0,0.02302158]
[1765967773923,0.003,86889.0,86875.0,0.02302158]
[1765967774097,0.002,86889.0,86875.0,0.02302158]
[1765967774258,0.002,86889.0,86874.0,0.00806536]
[1765967774458,0.003,86889.0,86874.0,0.00161287]
[1765967775025,0.003,86889.0,86874.0,0.02463471]
[1765967775225,0.001,86889.0,86874.0,0.02463471]
[1765967775390,0.002,86889.0,86874.0,0.02463471]
[1765967775584,0.001,86889.0,86874.0,0.02463471]
[1765967775783,0.50478771,86890.0,86874.0,0.02463471]
[1765967775989,0.002,86889.0,86876.0,0.03977]
[1765967776190,0.002,86889.0,86888.0,0.06696]
[1765967776392,0.002,86889.0,86888.0,0.08681287]
[1765967776812,0.00011276,86909.0,86890.0,0.01911]
[1765967777029,0.00011276,86909.0,86891.0,0.14740493]
[1765967777176,0.00011276,86909.0,86892.0,0.02301707]
[1765967777381,0.00011276,86909.0,86892.0,0.02462994]
[1765967777808,0.00011276,86909.0,86892.0,0.06439994]
[1765967778028,0.00011276,86909.0,86893.0,0.02458409]
[1765967778254,0.00011276,86909.0,86894.0,0.04760063]
[1765967778452,0.00011276,86909.0,86894.0,0.03956459]
[1765967779291,0.00111276,86909.0,86895.0,0.02458745]
[1765967779448,0.00111276,86909.0,86895.0,0.00161287]
[1765967779652,0.00111276,86909.0,86897.0,0.03977]
[1765967779927,0.00211276,86909.0,86898.0,0.04760182]
[1765967780064,0.00211276,86909.0,86899.0,0.02863199]
[1765967780267,0.00011276,86909.0,86900.0,0.02301495]
[1765967780470,0.00111276,86909.0,86900.0,0.02462782]
[1765967781114,0.00111276,86909.0,86908.0,0.06696]
[1765967781303,0.00111276,86909.0,86908.0,0.06857287]
[1765967781635,0.00111276,86909.0,86908.0,0.07543016]
[1765967781636,0.00211276,86909.0,86908.0,0.07543016]
[1765967781840,0.00111276,86909.0,86908.0,0.07543016]
[1765967782603,0.00011276,86909.0,86908.0,0.07543016]
[1765967782948,0.00111276,86909.0,86908.0,0.07543016]
[1765967783189,0.00111276,86909.0,86908.0,0.10001948]
[1765967783359,0.00011276,86909.0,86908.0,0.10001948]
[1765967783779,0.00011276,86909.0,86908.0,0.33014789]
[1765967783919,0.00011276,86909.0,86908.0,0.10001948]
[1765967784119,0.00011276,86909.0,86908.0,0.03305948]
[1765967784804,0.00011276,86909.0,86908.0,0.10001948]
[1765967785131,0.00011276,86909.0,86908.0,0.35316073]
[1765967785437,0.00011276,86909.0,86908.0,0.33014789]
[1765967785840,0.00011276,86909.0,86908.0,0.10001948]
[1765967786062,0.00011276,86909.0,86908.0,0.35316073]
[1765967786276,0.00011276,86909.0,86908.0,0.33014789]
[1765967788771,0.00011276,86909.0,86908.0,0.10001948]
[1765967788968,0.00011276,86909.0,86908.0,0.12303232]
[1765967790598,0.00011276,86909.0,86908.0,0.08326232]
[1765967790765,0.00011276,86909.0,86908.0,0.11573906]
[1765967791197,0.00011276,86909.0,86908.0,0.12303232]
[1765967793139,0.00011276,86909.0,86908.0,0.08326232]
[1765967793338,0.34383483,86930.0,86909.0,1.424e-05]
[1765967793505,0.01150231,86939.0,86909.0,1.424e-05]
[1765967793506,0.01150231,86939.0,86910.0,0.09982477]
[1765967793714,0.34383483,86930.0,86912.0,0.01911]
[1765967797204,0.002,86923.0,86915.0,0.01824]
[1765967797617,0.24359321,86923.0,86914.0,0.01824]
[1765967797826,0.23008083,86926.0,86914.0,0.01824]
[1765967798032,0.34383483,86924.0,86914.0,0.01824]
[1765967798198,0.003,86923.0,86914.0,0.01824]
[1765967798454,0.002,86923.0,86914.0,0.01824]
[1765967798754,0.01150496,86919.0,86914.0,0.01824]
[1765967798934,0.01150496,86919.0,86909.0,1.424e-05]
[1765967799136,0.01150549,86915.0,86909.0,1.424e-05]
[1765967799313,0.01150509,86918.0,86909.0,1.424e-05]
[1765967799517,0.24160714,86918.0,86909.0,1.424e-05]
[1765967799717,0.01150536,86916.0,86909.0,1.424e-05]
[1765967799938,0.01150522,86917.0,86909.0,1.424e-05]
[1765967800144,0.34583483,86919.0,86909.0,1.424e-05]
[1765967800660,0.23010527,86917.0,86909.0,1.424e-05]
[1765967800819,0.35733979,86919.0,86909.0,1.424e-05]
[1765967801157,0.35633979,86919.0,86909.0,1.424e-05]
[1765967801546,0.001,86918.0,86909.0,1.424e-05]
[1765967801741,0.35633979,86919.0,86909.0,1.424e-05]
[1765967802158,0.01150522,86917.0,86909.0,1.424e-05]
[1765967802360,0.01150536,86916.0,86909.0,1.424e-05]
[1765967802804,0.24460913,86918.0,86909.0,1.424e-05]
[1765967802985,0.001,86918.0,86909.0,1.424e-05]
[1765967803193,0.01150509,86918.0,86909.0,1.424e-05]
[1765967803393,0.002,86917.0,86909.0,1.424e-05]
[1765967803882,0.01150509,86918.0,86909.0,1.424e-05]
[1765967804083,0.24161038,86917.0,86909.0,1.424e-05]
[1765967804398,0.01350509,86918.0,86909.0,1.424e-05]
[1765967804597,0.24360739,86918.0,86909.0,1.424e-05]
[1765967804767,0.002,86917.0,86909.0,1.424e-05]
[1765967805950,0.004,86917.0,86909.0,1.424e-05]
[1765967806842,0.23012311,86910.0,86909.0,1.424e-05]
[1765967807453,0.01150575,86913.0,86909.0,1.424e-05]
[1765967807870,0.06924467,86914.0,86909.0,1.424e-05]
[1765967808606,0.05773905,86914.0,86909.0,1.424e-05]
[1765967808852,0.001,86910.0,86909.0,1.424e-05]
[1765967809062,0.002,86910.0,86909.0,1.424e-05]
[1765967809288,0.001,86910.0,86909.0,1.424e-05]
[1765967809492,0.01150536,86916.0,86909.0,1.424e-05]
[1765967809752,0.003,86914.0,86909.0,1.424e-05]
[1765967810184,0.001,86914.0,86909.0,1.424e-05]
[1765967810598,0.001,86910.0,86909.0,1.424e-05]
[1765967811272,0.002,86910.0,86909.0,1.424e-05]
[1765967811619,0.001,86910.0,86909.0,1.424e-05]
[1765967811821,0.23112311,86910.0,86909.0,1.424e-05]
[1765967812887,0.23212311,86910.0,86909.0,1.424e-05]
[1765967813508,0.002,86910.0,86909.0,1.424e-05]
[1765967820790,0.23212311,86910.0,86909.0,1.424e-05]
[1765967820993,0.002,86910.0,86909.0,1.424e-05]
[1765967822178,0.23212311,86910.0,86909.0,1.424e-05]
[1765967822421,0.23212311,86910.0,86878.0,0.05761]
[1765967822422,0.23212311,86910.0,86892.0,1.804e-05]
[1765967822423,0.23016209,86896.0,86892.0,1.804e-05]
[1765967822621,0.01150814,86895.0,86892.0,0.00011276]
[1765967822821,0.23016813,86893.0,86892.0,2.76e-06]
[1765967823355,0.05773905,86894.0,86892.0,2.76e-06]
[1765967823708,0.23016813,86893.0,86892.0,2.76e-06]
[1765967824354,0.23216813,86893.0,86892.0,2.76e-06]
[1765967824642,0.002,86893.0,86892.0,2.76e-06]
[1765967825276,0.23416813,86893.0,86892.0,2.76e-06]
[1765967829218,0.24586986,86893.0,86892.0,2.76e-06]
[1765967829417,0.23416813,86893.0,86892.0,2.76e-06]
[1765967830477,0.05081321,86893.0,86892.0,2.76e-06]
[1765967832677,0.002,86893.0,86892.0,2.76e-06]
[1765967834517,0.05773905,86894.0,86892.0,2.76e-06]
[1765967834733,0.002,86893.0,86892.0,2.76e-06]
[1765967835540,0.05773905,86894.0,86892.0,2.76e-06]
[1765967835762,0.05973905,86894.0,86892.0,2.76e-06]
[1765967836929,0.05773905,86894.0,86892.0,2.76e-06]
[1765967837338,0.002,86893.0,86892.0,2.76e-06]
[1765967837774,0.05773905,86894.0,86892.0,2.76e-06]
[1765967838115,0.05973905,86894.0,86892.0,2.76e-06]
[1765967839259,0.23016813,86893.0,86892.0,2.76e-06]
[1765967840393,0.23216813,86893.0,86892.0,2.76e-06]
[1765967841182,0.23016813,86893.0,86892.0,2.76e-06]
[1765967841383,0.23416813,86893.0,86892.0,2.76e-06]
[1765967842044,1.00644913,86893.0,86892.0,2.76e-06]
[1765967842245,1.00644913,86893.0,86867.0,0.00253887]
[1765967842246,0.23022673,86871.0,86867.0,1.63e-06]
[1765967842422,0.01151065,86876.0,86867.0,7.101e-05]
[1765967842606,0.01151079,86875.0,86867.0,7.101e-05]
[1765967843008,0.24173234,86873.0,86867.0,7.101e-05]
[1765967843208,0.01151118,86872.0,86867.0,7.101e-05]
[1765967843407,0.01151132,86871.0,86867.0,7.101e-05]
[1765967843661,0.01151145,86870.0,86867.0,7.101e-05]
[1765967844029,0.2302342,86869.0,86867.0,0.00107101]
[1765967844162,0.23023437,86868.0,86867.0,1.01e-06]
[1765967844508,0.01151224,86864.0,86841.0,0.04968141]
[1765967844704,0.34434574,86860.0,86847.0,0.01824]
[1765967844922,0.34434574,86860.0,86848.0,0.02466816]
[1765967845087,0.34434574,86860.0,86859.0,0.00025301]
[1765967845414,0.00011273,86864.0,86859.0,0.00025301]
[1765967846478,0.01262497,86864.0,86859.0,0.00025301]
[1765967846687,0.00111273,86864.0,86859.0,0.00025301]
[1765967846900,0.01162497,86864.0,86859.0,0.00025301]
[1765967847101,0.23025558,86860.0,86859.0,3.01e-06]
[1765967847946,0.23025325,86861.0,86859.0,3.01e-06]
[1765967848319,0.23025315,86861.0,86859.0,3.01e-06]
[1765967848494,0.01162497,86864.0,86859.0,3.01e-06]
[1765967848635,0.06925156,86862.0,86859.0,3.01e-06]
[1765967848842,0.23025558,86860.0,86859.0,3.01e-06]
[1765967849353,0.23125558,86860.0,86859.0,3.01e-06]
[1765967849960,0.23025558,86860.0,86859.0,3.01e-06]
[1765967850482,0.23225558,86860.0,86859.0,3.01e-06]
[1765967850681,0.23325558,86860.0,86859.0,3.01e-06]
[1765967851064,0.003,86860.0,86859.0,3.01e-06]
[1765967852356,0.001,86860.0,86859.0,3.01e-06]
[1765967852724,0.002,86860.0,86859.0,3.01e-06]
[1765967853106,0.001,86860.0,86859.0,3.01e-06]
[1765967853326,0.00011273,86864.0,86859.0,3.01e-06]
[1765967854675,0.00011273,86864.0,86861.0,0.01927]
[1765967854813,0.00011273,86864.0,86863.0,0.06519]
[1765967855015,0.00011273,86864.0,86863.0,0.06680287]
[1765967855247,0.00011273,86864.0,86863.0,0.11447669]
[1765967855578,0.00111273,86864.0,86863.0,0.11447669]
[1765967856106,0.00011273,86864.0,86863.0,0.11447669]
[1765967856414,0.00011273,86864.0,86863.0,0.14838262]
[1765967856559,0.00011273,86864.0,86863.0,0.15038262]
[1765967857576,0.00011273,86864.0,86863.0,0.34772432]
[1765967857790,0.00011273,86864.0,86863.0,0.32469956]
[1765967858777,0.00011273,86864.0,86863.0,0.09445193]
[1765967859122,0.00011273,86864.0,86863.0,0.32469956]
[1765967860185,0.00011273,86864.0,86863.0,0.09445193]
[1765967860368,0.00011273,86864.0,86863.0,0.02926193]
[1765967861206,0.00011273,86864.0,86863.0,0.00461287]
[1765967862054,0.00011273,86864.0,86863.0,0.00361287]
[1765967862258,0.00011273,86864.0,86863.0,0.09191791]
[1765967862453,0.00011273,86864.0,86863.0,0.15229794]
[1765967862664,0.00011273,86864.0,86863.0,0.15329794]
[1765967863108,0.00011273,86864.0,86863.0,0.15229794]
[1765967863314,0.00011273,86864.0,86863.0,0.38254557]
[1765967863514,0.00011273,86864.0,86863.0,0.36252081]
[1765967864284,0.00011273,86864.0,86863.0,0.13227318]
[1765967864476,0.00011273,86864.0,86863.0,0.06862318]
[1765967864705,0.00011273,86864.0,86863.0,0.02926791]
[1765967866071,0.00011273,86864.0,86863.0,0.02626791]
[1765967866505,0.00011273,86864.0,86863.0,0.02726791]
[1765967868136,0.00011273,86864.0,86863.0,0.02565504]
[1765967876383,0.00011273,86864.0,86863.0,0.001]
[1765967877086,0.00011273,86864.0,86846.0,0.01824]
[1765967877285,0.00011273,86864.0,86847.0,0.02469522]
[1765967877515,0.5050122,86860.0,86848.0,0.02469522]
[1765967877740,0.5050122,86860.0,86849.0,0.02469522]
[1765967877927,0.5050122,86860.0,86850.0,0.02469522]
[1765967878128,0.00011273,86864.0,86851.0,0.02469522]
[1765967878350,0.00111273,86864.0,86852.0,0.02469522]
[1765967878468,0.00111273,86864.0,86853.0,0.02469522]
[1765967878668,0.00111273,86864.0,86854.0,0.02469522]
[1765967878908,0.00011273,86864.0,86855.0,0.02469522]
[1765967879103,0.00011273,86864.0,86851.0,0.00161287]
[1765967879385,0.00011273,86864.0,86852.0,0.02469801]
[1765967879586,0.00011273,86864.0,86853.0,0.04124161]
[1765967879790,0.01824,86875.0,86854.0,0.02469801]
[1765967880063,0.5050122,86870.0,86855.0,0.02469801]
[1765967880267,0.5050122,86870.0,86856.0,0.02469801]
[1765967880565,0.5050122,86870.0,86857.0,0.02469801]
[1765967880761,0.05232522,86869.0,86858.0,0.02471662]
[1765967880954,0.05232522,86869.0,86856.0,0.00161287]
[1765967881127,0.05232522,86869.0,86857.0,0.02471732]
[1765967881338,0.5050122,86870.0,86858.0,0.02472331]
[1765967881584,0.5050122,86870.0,86859.0,0.02472207]
[1765967881792,0.5050122,86870.0,86856.0,0.00161287]
[1765967882102,0.5050122,86870.0,86857.0,0.02472161]
[1765967882303,0.5050122,86870.0,86858.0,0.02472161]
[1765967882527,0.5050122,86870.0,86856.0,0.00161287]
[1765967882528,0.5050122,86870.0,86859.0,0.02472161]
[1765967882664,0.5050122,86870.0,86856.0,0.00161287]
[1765967882869,0.5050122,86870.0,86857.0,0.02472747]
[1765967883080,0.55733742,86870.0,86858.0,0.02472747]
[1765967883283,0.55733742,86870.0,86859.0,0.02472747]
[1765967883515,0.55733742,86870.0,86856.0,0.00161287]
[1765967883686,0.55733742,86870.0,86857.0,0.02472813]
[1765967883911,0.05755774,86869.0,86858.0,0.02472813]
[1765967884074,0.05755774,86869.0,86859.0,0.02472813]
[1765967884297,0.05755774,86869.0,86856.0,0.00161287]
[1765967884498,0.05755774,86869.0,86857.0,0.02472816]
[1765967884819,0.05755774,86869.0,86858.0,0.02472816]
[1765967885017,0.05755774,86869.0,86859.0,0.02472816]
[1765967885237,0.05755774,86869.0,86856.0,0.00161287]
[1765967885556,0.33608311,86870.0,86857.0,0.02472389]
[1765967885736,0.33608311,86870.0,86858.0,0.02472389]
[1765967885938,0.33608311,86870.0,86859.0,0.02472389]
[1765967886139,0.33608311,86870.0,86858.0,0.001]
[1765967886306,0.33608311,86870.0,86859.0,0.02472314]
[1765967886509,0.05773905,86865.0,86856.0,0.00161287]
[1765967886704,0.05773905,86865.0,86857.0,0.02471864]
[1765967886903,0.05773905,86865.0,86856.0,0.00161287]
[1765967887130,0.05773905,86865.0,86857.0,0.02471894]
[1765967887327,0.05773905,86865.0,86856.0,0.00161287]
[1765967887537,0.05773905,86865.0,86857.0,0.02471718]
[1765967887779,0.05773905,86865.0,86856.0,0.00161287]
[1765967887925,0.05773905,86865.0,86857.0,0.02471719]
[1765967888126,0.05773905,86865.0,86854.0,0.0003767]
[1765967888330,0.5050122,86864.0,86855.0,0.02471684]
[1765967888531,0.5050122,86864.0,86854.0,0.0003767]
[1765967888934,0.05873905,86865.0,86854.0,0.0003767]
[1765967889342,0.33675124,86864.0,86854.0,0.0003767]
[1765967889941,0.33775124,86864.0,86854.0,0.0003767]
[1765967890597,0.33875124,86864.0,86854.0,0.0003767]
[1765967890976,0.33775124,86864.0,86854.0,0.0003767]
[1765967891179,0.001,86864.0,86854.0,0.00198957]
[1765967891383,0.002,86864.0,86855.0,0.02471302]
[1765967891699,0.002,86864.0,86856.0,0.02471302]
[1765967891937,0.002,86864.0,86854.0,0.00198957]
[1765967892105,0.002,86864.0,86857.0,0.01888]
[1765967892106,0.001,86864.0,86857.0,0.01888]
[1765967892285,0.05773905,86865.0,86857.0,0.01888]
[1765967892623,0.05773905,86865.0,86857.0,0.02049287]
[1765967893213,0.05773905,86865.0,86858.0,0.02470955]
[1765967893394,0.05773905,86865.0,86859.0,0.02470955]
[1765967893598,0.05773905,86865.0,86857.0,0.02049287]
[1765967893803,0.05773905,86865.0,86858.0,0.02471066]
[1765967894002,0.05773905,86865.0,86859.0,0.02471066]
[1765967894201,0.05773905,86865.0,86857.0,0.02049287]
[1765967894432,0.05773905,86865.0,86858.0,0.02471352]
[1765967894630,0.05773905,86865.0,86859.0,0.02471352]
[1765967894828,0.05773905,86865.0,86860.0,0.02471352]
[1765967895065,0.05773905,86865.0,86857.0,0.02049287]
[1765967895298,0.05773905,86865.0,86858.0,0.02471356]
[1765967895518,0.05773905,86865.0,86859.0,0.02471356]
[1765967895714,0.05773905,86865.0,86857.0,0.02049287]
[1765967895913,0.05773905,86865.0,86858.0,0.02471451]
[1765967896113,0.05773905,86865.0,86859.0,0.02471451]
[1765967896331,0.05773905,86865.0,86857.0,0.02049287]
[1765967896562,0.05773905,86865.0,86858.0,0.02471625]
[1765967896747,0.05773905,86865.0,86859.0,0.02471625]
[1765967896971,0.05773905,86865.0,86857.0,0.00161287]
[1765967897180,0.05773905,86865.0,86858.0,0.02471596]
[1765967897376,0.05773905,86865.0,86859.0,0.02471596]
[1765967897664,0.05773905,86865.0,86857.0,0.00161287]
[1765967897893,0.05773905,86865.0,86858.0,0.02471814]
[1765967898092,0.05773905,86865.0,86859.0,0.02471814]
[1765967898319,0.05773905,86865.0,86860.0,0.02471884]
[1765967898500,0.05773905,86865.0,86857.0,0.00161287]
[1765967898793,0.05773905,86865.0,86858.0,0.02472009]
[1765967899129,0.05773905,86865.0,86859.0,0.02472009]
[1765967899332,0.05773905,86879.0,86861.0,0.01151264]
[1765967899534,0.05773905,86879.0,86866.0,0.03565]
[1765967899759,0.05773905,86879.0,86867.0,0.06037009]
[1765967899960,0.05773905,86879.0,86868.0,0.02472009]
[1765967900262,0.05773905,86879.0,86869.0,0.02472009]
[1765967900435,0.05773905,86879.0,86870.0,0.02472009]
[1765967900607,0.05773905,86879.0,86871.0,0.02472009]
[1765967900817,0.05773905,86879.0,86869.0,0.00161287]
[1765967901002,0.05773905,86879.0,86870.0,0.02470989]
[1765967901198,0.05773905,86879.0,86871.0,0.02470989]
[1765967901408,0.05773905,86879.0,86869.0,0.00161287]
[1765967901617,0.05873905,86879.0,86870.0,0.02470772]
[1765967901969,0.05773905,86879.0,86871.0,0.02470772]
[1765967902174,0.05773905,86879.0,86869.0,0.00161287]
[1765967902338,0.05873905,86879.0,86869.0,0.00161287]
[1765967902665,0.05973905,86879.0,86869.0,0.00161287]
[1765967902865,0.05973905,86879.0,86859.0,0.03083199]
[1765967903064,0.05773905,86879.0,86860.0,0.03730428]
[1765967903370,0.05873905,86879.0,86861.0,0.02470876]
[1765967903541,0.05973905,86879.0,86862.0,0.02470876]
[1765967903722,0.05973905,86879.0,86863.0,0.02470876]
[1765967903923,0.05973905,86879.0,86864.0,0.02470876]
[1765967904182,0.05873905,86879.0,86865.0,0.03524867]
[1765967904383,0.05973905,86879.0,86866.0,0.02470876]
[1765967904578,0.05973905,86879.0,86865.0,0.01053991]
[1765967904579,0.05873905,86879.0,86867.0,0.02470876]
[1765967904781,0.05973905,86879.0,86868.0,0.02470876]
[1765967905032,0.05973905,86879.0,86865.0,0.01053991]
[1765967905033,0.05973905,86879.0,86869.0,0.02470876]
[1765967905185,0.05873905,86879.0,86865.0,0.01053991]
[1765967905389,0.05973905,86879.0,86866.0,0.02470366]
[1765967905581,0.05873905,86879.0,86867.0,0.02470366]
[1765967905788,0.05773905,86879.0,86868.0,0.0314725]
[1765967906034,0.05873905,86879.0,86869.0,0.02470366]
[1765967906184,0.05973905,86879.0,86868.0,0.00676884]